Cogmind - Beta 11.1 @@@ ROGUE MODE // 2022.07.03 @ 01:12:02 Player: Jezoensis Result: Destroyed by DAS Turret with DAS Cannon Performance ------------- Evolutions (1) 500 Regions Visited (5) 1000 Robots Destroyed (20) 100 Value Destroyed (308) 308 Prototype IDs (5) 100 Alien Tech Used (0) 0 Bonus (300) 300 TOTAL SCORE: 2308 Bonus ------- Aligned with FarCom 300 Cogmind --------- Core Integrity 0/400 Matter 35/300 Energy 98/100 System Corruption 10% Temperature Cool (0) Movement Core (50) Location -9/Exiles Parts ------- > --- POWER (1) -------- (None) > --- PROPULSION (3) --- (None) > --- UTILITY (3) ------ (None) > --- WEAPON (2) ------- (None) > --- INVENTORY (5) ---- XL Autogun Array Peak State ------------ > --- POWER ------------ (None) > --- PROPULSION ------- Light Treads Wheel Compact Wheel > --- UTILITY ---------- High-capacity Storage Unit Terrain Scan Processor Improved Targeting Computer > --- WEAPON ----------- AWS/Gauss > --- INVENTORY -------- Wheel Compact Wheel Compact Wheel Large Storage Unit High-capacity Matter Pod Improved Terrain Scanner Supersonic Drone Bay Beam Rifle Improved Medium Laser Improved Medium Laser XL Autogun Array Rocket Launcher Rocket Launcher Mining Laser [Rating: 30] Favorites ----------- Power Ion Engine Engine Ion Engine Propulsion Wheel Treads Light Treads Wheel Wheel Utility Improved Terrain Scanner Device Improved Terrain Scanner Storage High-capacity Storage Unit Processor Terrain Scan Processor Weapon Assault Rifle Energy Gun Improved Medium Laser Ballistic Gun Assault Rifle Launcher Rocket Launcher Special Weapon Mining Laser Build | -11 -10 -10 -9 -9 -9 ------- Run | Scr Mat Min Mat Min Exi Slots Evolved 2 | . . . 2 . . Power . | . . . . . . Propulsion 1 | . . . 1 . . Utility 1 | . . . 1 . . Weapon . | . . . . . . Parts Attached 65 | 9 10 7 19 . 20 Power 5 | 1 1 . 2 . 1 Engine 5 | 1 1 . 2 . 1 Core . | . . . . . . Reactor . | . . . . . . Propulsion 26 | 4 5 4 6 . 7 Treads 10 | . 2 2 2 . 4 Leg . | . . . . . . Wheel 16 | 4 3 2 4 . 3 Hover . | . . . . . . Flight . | . . . . . . Utility 9 | 2 . 1 4 . 2 Device 2 | 1 . . 1 . . Storage 4 | 1 . 1 2 . . Processor 3 | . . . 1 . 2 Hackware . | . . . . . . Protection . | . . . . . . Artifact . | . . . . . . Weapon 25 | 2 4 2 7 . 10 Energy Gun 5 | . . . 4 . 1 Energy Cannon . | . . . . . . Ballistic Gun 12 | 2 2 1 3 . 4 Ballistic Cannon . | . . . . . . Launcher 5 | . . . . . 5 Special Weapon 3 | . 2 1 . . . Impact Weapon . | . . . . . . Slashing Weapon . | . . . . . . Piercing Weapon . | . . . . . . Special Melee Weapon . | . . . . . . Unidentified Prototypes 5 | . . . 4 . 1 Parts Lost 14 | . . . . . 14 Power 2 | . . . . . 2 Propulsion 5 | . . . . . 5 Utility 1 | . . . . . 1 Weapon 6 | . . . . . 6 Highest Loss Streak 14 | . . . . . 14 To Critical Strikes 7 | . . . . . 7 Average Slot Usage (%) 95 | . 100 100 99 100 84 Engine 11 | . 14 14 11 11 8 Treads 8 | . 2 4 10 11 12 Wheel 20 | . 25 23 21 22 13 Device 13 | . 14 14 19 11 5 Storage 11 | . 14 14 11 11 10 Processor 5 | . . . 2 11 14 Energy Gun 4 | . . . 6 11 6 Ballistic Gun 17 | . 25 25 14 11 10 Special Weapon 1 | . 2 2 . . . Naked Turns 25 | . . . . . 25 Heaviest Build 52 | 12 14 19 52 52 52 Greatest Support 32 | 32 26 20 26 26 26 Greatest Overweight (x) 5 | . . . 2 1 5 Average Overweight (x) . | . . . . 1 . Largest Inventory Capacity 20 | 8 8 10 20 20 20 Average Capacity 13 | 7 8 9 14 20 18 Most Carried 20 | 8 8 10 20 20 20 Average Carried 11 | 4 8 9 12 20 17 Final Capacity 20 | 8 8 10 20 20 5 Final Carried 20 | 8 8 10 20 20 4 Class Distribution -------------------- 61% | Scavenger-Mutant 38% | Mutant Dominant Class ---------------- Mutant | -10/Materials Scavenger-Mutant | -10/Mines Scavenger-Mutant | -9/Materials Scavenger-Mutant | -9/Mines Mutant | -9/Exiles Resources | -11 -10 -10 -9 -9 -9 ----------- Run | Scr Mat Min Mat Min Exi Matter Collected 1259 | 239 42 461 300 . 217 Remotely . | . . . . . . Salvage Created 836 | 67 42 97 597 . 33 Parts 52 | 13 2 6 31 . . Haulers Intercepted 2 | . . . 2 . . Recyclers Shooed . | . . . . . . Parts Field Recycled . | . . . . . . Retrieved Matter . | . . . . . . Parts Self-Destructed . | . . . . . . Prevented . | . . . . . . Kills | -11 -10 -10 -9 -9 -9 ------- Run | Scr Mat Min Mat Min Exi Combat Hostiles Destroyed 16 | . 1 3 5 . 7 Guns 10 | . 1 3 4 . 2 AOE 6 | . . . 1 . 5 Classes Destroyed 10 | 1 1 2 6 . . Worker 3 | . . . 3 . . Builder 2 | . . 2 . . . Tunneler 4 | 4 . . . . . Hauler 2 | . . . 2 . . Recycler 3 | . . . 3 . . Swarmer 1 | . . . 1 . . Grunt 2 | . 1 . 1 . . Duelist 1 | . . . 1 . . Sentry 2 | . . . 2 . . Assembled 10 | . . 3 . . 7 Best Kill Streak 7 | 4 1 2 5 . 7 Combat Bots Only 7 | . 1 2 3 . 7 Max Kills in Single Turn 3 | 1 1 1 2 . 3 Gunslinging . | . . . . . . Exploded 3 | . . . 1 . 3 Melee . | . . . . . . Uniques/NPCs Destroyed . | . . . . . . Combat | -11 -10 -10 -9 -9 -9 -------- Run | Scr Mat Min Mat Min Exi Damage Taken 2008 | . 57 142 64 . 1745 Core 455 | . . 14 8 . 433 Absorbed by Shields . | . . . . . . Core Remaining (%) 97 | 100 . 94 . . . Volleys Fired 110 | 10 13 25 27 . 35 Largest 2 | 2 2 2 2 . 2 Hottest 100 | 40 100 100 79 . 68 Shots Fired 199 | 20 20 41 53 . 65 Gun 161 | 20 14 32 53 . 42 Cannon . | . . . . . . Launcher 23 | . . . . . 23 Special 15 | . 6 9 . . . Kinetic 128 | 20 14 32 33 . 29 Thermal 35 | . 6 9 19 . 1 Explosive 23 | . . . . . 23 Electromagnetic 13 | . . . 1 . 12 Robot Hit Streak 21 | 4 6 3 21 . 18 Robot Miss Streak 6 | 1 1 3 6 . 3 Penetration Max . | . . . . . . Secondary Targets 2 | . . 1 1 . . Max Gunslinging Chain 1 | . . 1 1 . . Shots Hit Robots 120 | 12 11 14 34 . 49 Core Hits 56 | 4 4 8 18 . 22 Critical Kills 1 | . . . 1 . . Critical Parts Destroyed . | . . . . . . Critical Strikes 3 | . . . 3 . . Burn 2 | . . . 2 . . Destroy 1 | . . . 1 . . Melee Attacks . | . . . . . . Impact . | . . . . . . Slashing . | . . . . . . Piercing . | . . . . . . Sneak Attacks . | . . . . . . Combat Hostiles . | . . . . . . Follow-up Attacks . | . . . . . . Damage Inflicted 1751 | 128 110 157 599 . 757 Guns 1289 | 128 110 157 549 . 345 Cannons . | . . . . . . Explosions 462 | . . . 50 . 412 Melee . | . . . . . . Ramming . | . . . . . . Kinetic 1013 | 128 110 157 282 . 336 Thermal 305 | . . . 305 . . Explosive 412 | . . . . . 412 Electromagnetic 21 | . . . 12 . 9 Impact . | . . . . . . Slashing . | . . . . . . Piercing . | . . . . . . Highest Corruption 10 | . . . 5 5 10 Average Corruption 5 | . . . 5 5 7 Corruption Purged . | . . . . . . Corruption Blocked . | . . . . . . Effects 20 | . . . 10 . 10 Message Errors 3 | . . . 3 . . Matter Fused 4 | . . . 2 . 2 Heat Flow Errors 3 | . . . 1 . 2 Energy Discharges 3 | . . . 2 . 1 Parts Rejected 1 | . . . . . 1 Data Loss (minor) 1 | . . . . . 1 Data Loss (major) 1 | . . . 1 . . Misfires 2 | . . . . . 2 Weapon Failures 2 | . . . 1 . 1 Overload Shots . | . . . . . . Overflow Damage . | . . . . . . Projectiles . | . . . . . . Explosions . | . . . . . . Melee . | . . . . . . Knockbacks . | . . . . . . Impact . | . . . . . . Kinetic . | . . . . . . Secondary . | . . . . . . Self-Inflicted Damage 30 | . . . 30 . . Shots 1 | . . . 1 . . Rammed . | . . . . . . Targets Rammed . | . . . . . . Kicked . | . . . . . . Crushed . | . . . . . . Highest Temperature 252 | . 40 80 110 . 252 Average Temperature 42 | . 20 43 32 . 81 Received Heat Transfer 66 | . 30 . 36 . . Effects 3 | . . . . . 3 Interference 3 | . . . . . 3 Siege Activations . | . . . . . . Robots Corrupted . | . . . . . . Combat Hostiles . | . . . . . . Parts Fried . | . . . . . . Impact Corruptions . | . . . . . . Robots Melted . | . . . . . . Combat Hostiles . | . . . . . . Parts Melted 1 | . . . 1 . . Heat Transferred 827 | . . . 827 . . Parts Sabotaged . | . . . . . . Parts Stolen . | . . . . . . Parts Stripped . | . . . . . . Power Chain Reactions 1 | . . . 1 . . Missiles Intercepted . | . . . . . . Alert | -11 -10 -10 -9 -9 -9 ------- Run | Scr Mat Min Mat Min Exi Peak Influence 357 | 20 98 68 357 61 . Initial 61 | . 13 37 26 61 . Average 91 | 6 50 46 179 61 . Maximum Alert Level 1 | . . . 1 . . Low Security (%) 83 | 100 100 100 54 100 . Level 1 16 | . . . 45 . . Level 2 . | . . . . . . Level 3 . | . . . . . . Level 4 . | . . . . . . Level 5 . | . . . . . . High Security . | . . . . . . Max Security . | . . . . . . Squads Dispatched 3 | . 1 . 2 . . Investigation . | . . . . . . Extermination . | . . . . . . Reinforcement 3 | . 1 . 2 . . Assault . | . . . . . . Garrison . | . . . . . . Intercept . | . . . . . . Searches Triggered . | . . . . . . Construction Impeded . | . . . . . . Haulers Reinforced . | . . . . . . Active Scanning Responses . | . . . . . . Cargo Convoy Interrupts . | . . . . . . Stealth | -11 -10 -10 -9 -9 -9 --------- Run | Scr Mat Min Mat Min Exi Distress Signals 2 | . . . 2 . . Communications Jammed . | . . . . . . Distress Signals . | . . . . . . Times Spotted 35 | . 6 5 13 . 11 Peak Tracking Total 9 | . 3 4 4 . 9 Tactical Retreats 5 | . 2 1 1 . 1 Traps | -11 -10 -10 -9 -9 -9 ------- Run | Scr Mat Min Mat Min Exi Traps Triggered . | . . . . . . Indirectly . | . . . . . . Trap Hack Attempts . | . . . . . . Triggered . | . . . . . . Disarmed . | . . . . . . Reprogrammed . | . . . . . . Reused . | . . . . . . Traps Extracted . | . . . . . . Installed . | . . . . . . Triggered . | . . . . . . Machines | -11 -10 -10 -9 -9 -9 ---------- Run | Scr Mat Min Mat Min Exi Machines Disabled 5 | . . . 3 . 2 Max in Single Turn 1 | . . . 1 . 1 Machines Sabotaged . | . . . . . . Garrisons Compromised . | . . . . . . Overloaded Fab Kills . | . . . . . . Hacking | -11 -10 -10 -9 -9 -9 --------- Run | Scr Mat Min Mat Min Exi Machines Accessed 7 | . 5 . 2 . . Terminals 6 | . 5 . 1 . . Fabricators . | . . . . . . Repair Stations . | . . . . . . Recycling Units 1 | . . . 1 . . Scanalyzers . | . . . . . . Garrison Access . | . . . . . . Total Hacks 22 | . 15 . 7 . . Successful 14 | . 10 . 4 . . Failed 8 | . 5 . 3 . . Catastrophic 1 | . 1 . . . . Database Lockouts . | . . . . . . Manual 20 | . 13 . 6 . 1 Terminals 19 | . 15 . 4 . . Fabricators . | . . . . . . Repair Stations . | . . . . . . Recycling Units 3 | . . . 3 . . Scanalyzers . | . . . . . . Garrison Access . | . . . . . . Terminal Hacks 7 | . 5 . 2 . . Robot Analysis 2 | . 2 . . . . Terminal Index 2 | . 1 . 1 . . Locate Traps 3 | . 2 . 1 . . Fabricator Hacks . | . . . . . . Repair Station Hacks . | . . . . . . Recycling Unit Hacks . | . . . . . . Scanalyzer . | . . . . . . Garrison Access Hacks . | . . . . . . Unauthorized Hacks 7 | . 5 . 2 . . Terminals 6 | . 5 . 1 . . Track 2 | . 2 . . . . Botnet 3 | . 2 . 1 . . Operators 1 | . 1 . . . . Fabricators . | . . . . . . Repair Stations . | . . . . . . Recycling Units 1 | . . . 1 . . Reject 1 | . . . 1 . . Scanalyzers . | . . . . . . Garrison Access . | . . . . . . Data Cores Recovered . | . . . . . . Used . | . . . . . . Hacking Detections 7 | . 5 . 2 . . Full Trace Events . | . . . . . . Feedback Events . | . . . . . . Feedback Blocked . | . . . . . . Robot Schematics Acquired . | . . . . . . Robots Built . | . . . . . . Authchips . | . . . . . . Time . | . . . . . . Total Robot Build Rating . | . . . . . . Part Schematics Acquired . | . . . . . . Parts Built . | . . . . . . Authchips . | . . . . . . Time . | . . . . . . Total Part Build Rating . | . . . . . . Parts Repaired . | . . . . . . Time . | . . . . . . Parts Recycled . | . . . . . . Recycled Matter . | . . . . . . Retrieved Matter . | . . . . . . Retrieved Components . | . . . . . . Parts Scanalyzed . | . . . . . . Part Schematics Acquired . | . . . . . . Parts Damaged . | . . . . . . Bothacking | -11 -10 -10 -9 -9 -9 ------------ Run | Scr Mat Min Mat Min Exi Used RIF Installer . | . . . . . . Robots Hacked . | . . . . . . Non-combat . | . . . . . . Combat . | . . . . . . Robot Hacks Applied . | . . . . . . Relay Couplers Released . | . . . . . . Fabnet Peak Effective % . | . . . . . . Robots Rewired . | . . . . . . Allies Hacked . | . . . . . . Hacks Repelled . | . . . . . . Allies | -11 -10 -10 -9 -9 -9 -------- Run | Scr Mat Min Mat Min Exi Total Allies . | . . . . . . Largest Group . | . . . . . . Highest-Rated Group . | . . . . . . Highest-Rated Ally . | . . . . . . Total Orders . | . . . . . . Ally Attacks . | . . . . . . Total Damage . | . . . . . . Kills . | . . . . . . Allies Corrupted . | . . . . . . Allies Melted . | . . . . . . Intel | -11 -10 -10 -9 -9 -9 ------- Run | Scr Mat Min Mat Min Exi Robot Analysis Total 2 | . 2 . . . . Derelict Logs Recovered 2 | . . 1 . 1 . Drone Launches . | . . . . . . Drone Recoveries . | . . . . . . Exploration | -11 -10 -10 -9 -9 -9 ------------- Run | Scr Mat Min Mat Min Exi Turns Passed 1493 | 111 288 279 408 72 335 Spaces Moved 1143 | 76 252 231 297 69 218 Core 72 | 20 . . . . 52 Treads . | . . . . . . Legs . | . . . . . . Wheels 1071 | 56 252 231 297 69 166 Hover . | . . . . . . Flight . | . . . . . . Fastest Speed 50 | 50 80 80 80 105 50 Average Speed 89 | 83 90 80 90 105 93 Slowest Speed 155 | 100 100 80 110 105 155 Overloaded Moves . | . . . . . . Propulsion Burnouts . | . . . . . . Robots Hopped . | . . . . . . Cave-ins Triggered . | . . . . . . Exploration Rate (%) 43 | 4 55 67 37 38 57 Regions Visited 5 Branch Regions 3 Pre-discovered Areas . | . . . . . . Known Exits Taken . | . . . . . . Unknown Exits Taken 5 | 1 1 1 1 1 . Scrap Searched 1 | . . 1 . . . Spaces Dug 15 | . 6 9 . . . Terrain Destroyed 82 | . 6 9 4 . 63 Melee . | . . . . . . Projectile 15 | . 6 9 . . . AOE 67 | . . . 4 . 63 Terrain Rammed . | . . . . . . Walls Destroyed . | . . . . . . Machines Disabled . | . . . . . . Actions | -11 -10 -10 -9 -9 -9 --------- Run | Scr Mat Min Mat Min Exi Total 1382 | 101 277 269 382 68 285 Wait 15 | . 2 . 7 . 6 Move 1138 | 75 251 230 296 68 218 Hop . | . . . . . . Pick Up 31 | 7 . 4 17 . 3 Fast Attach 14 | 6 . . 6 . 2 Attach 15 | 1 . . 4 . 10 Detach 5 | . . . 4 . 1 Swap 36 | 2 10 7 9 . 8 Drop 18 | . 1 3 12 . 2 Fire 110 | 10 13 25 27 . 35 Melee . | . . . . . . Ram . | . . . . . . Kick . | . . . . . . Crush . | . . . . . . Escape Stasis . | . . . . . . Rewire . | . . . . . . Trap . | . . . . . . Miscellaneous . | . . . . . . Route ------- -11/Scrapyard -10/Materials (discovered 2 exits: *Mat / [*Min]) -10/Mines -9/Materials (discovered 2 exits: Mat / [*Min]) -9/Mines (discovered 2 exits: *Exi / [*Zio]) -9/Exiles (discovered 1 exit: [*Min]) History --------- Turn | Location | Event 12 | -11/Scrapyard | Discovered new exit (range 16) 112 | -11/Scrapyard | Entered Materials 209 | -10/Materials | Discovered new exit (range 7) 300 | -10/Materials | Build established: Mutant 321 | -10/Materials | Discovered new exit (range 5) 400 | -10/Materials | Entered Mines 401 | -10/Mines | Assembled infested the area 603 | -10/Mines | Learned 2 Materials zone layouts 618 | -10/Mines | Discovered new exit (range 14) 679 | -10/Mines | Entered Materials 679 | -9/Materials | Evolved 2 slots: Propulsion x1, Utility x1 680 | -9/Materials | Identified exit to Materials 819 | -9/Materials | Discovered new exit (range 6) 831 | -9/Materials | Build established: Scavenger-Mutant 887 | -9/Materials | Met 8R-AWN 1087 | -9/Materials | Entered Mines 1089 | -9/Mines | Followed 8R-AWN into the Mines 1127 | -9/Mines | Learned Materials emergency access door positions 1140 | -9/Mines | A Derelict revealed a hidden shortcut to a safe place 1155 | -9/Mines | Discovered new exit (range 5) 1159 | -9/Mines | Entered Exiles 1173 | -9/Exiles | Discovered new exit (range 15) 1186 | -9/Exiles | Welcomed by 8R-AWN 1200 | -9/Exiles | Met EX-HEX 1276 | -9/Exiles | Met EX-BIN 1287 | -9/Exiles | Aligned with FarCom system 1288 | -9/Exiles | Given EX-Vault access code 1294 | -9/Exiles | Attacked by the Exiles 1339 | -9/Exiles | System corruption reached 10% 1361 | -9/Exiles | Destroyed 7 combat bots 1419 | -9/Exiles | Opened EX-Vault 1423 | -9/Exiles | Found Prototype Ballistic Gun 1423 | -9/Exiles | Identified AWS/Gauss 1426 | -9/Exiles | Found Prototype Ballistic Gun 1431 | -9/Exiles | Found Prototype Device 1469 | -9/Exiles | Released all parts (5) 1477 | -9/Exiles | Core integrity fell below 50% 1491 | -9/Exiles | Core integrity fell below 20% 1494 | -9/Exiles | Destroyed by DAS Turret with DAS Cannon Last Messages --------------- 01467_ Penetrated by HV Slug. 01469_ The unstable cave ceiling collapses. 01469_ Released Hcp. Storage Unit. 01469_ Released Terrain Scan Processor. 01469_ Released Imp. Targeting Computer. 01469_ Released Wheel. 01469_ Released Com. Wheel. 01470_ The unstable cave ceiling collapses. 01472_ HV Slug penetrates Wall. 01472_ Penetrated by HV Slug. 01472_ HV Slug penetrates Wall. 01473_ The unstable cave ceiling collapses. 01476_ HV Slug penetrates Wall. 01476_ HV Slug penetrates Earth. 01476_ Penetrated by HV Slug. 01476_ HV Slug penetrates Earth. 01480_ HV Slug penetrates Wall. 01480_ Penetrated by HV Slug. 01480_ HV Slug penetrates Machine. 01492_ Knocked back. Map ----- +----------------------------------------------------+ | ????????????????????????????????#" """# | | ??????????????????????????????#?# """# | | ????????????????????????#??????### """" | | ?????????????????????????????#???# """# | | ????????????????????????????#????#" "X" """" | | ???????????????????" ????????????#" """ # | | ??????????????????? ????????????#" """""""""# | | ???????????????????" ??????#?#?##" ########### | | ???????????????????# ?????#???##"" #??#??##??? | | ?????????????????### ##??######"" #?#??###??? | | ????????????"#####X# #"###""""""" ##?#?#??#?? | | ??????????? """""" " "" ##????#### | | ??????????? "" """ " #####"""" | | ?????????? " " " "" | | ?????????? "" | | ?????????? " | | ?????????# % | | ??????????# % | | ???????????#" | | ???????????#""" """""" | | ???????????#" % ######""" | | ???????????"" ""##?#??#####""" | | ???????????""" """##?#?#?????##""" | | ???????????"" """##??###?#???##"""" | | ???????????"" ""##?##??#?#####"" | | ??????????"" @##?####?#?####"""" | | ??????????""" ## ####""" | | ???????????" % """" | | ???????????""t | | ???????????"""" | | ???????????? " | | ????????????" " "" " | | ????????????"""" ""## ##""" " " "" | | ?????????????" ""#### ######""" """ | | ????????????? """"##### #???####""""# | | ?????????????"" """##?## ####???###### | | ?????????????? ""????#! "!#?????#??# | | ???????????????? """??##?#" ! #???#???## | | ?????????????????? #?????#" "#?#?####?? | | ????????????????????? ????????#!!""!"#????#??## | | ??????????????????????? ???????#########???#???## | | ?????????????????????????????#????##???##??###??#? | | ?????????????????????#?? ???#?#??????#???#????#??? | | ???????????????????????? ?#???###?????????#????#?? | | ?????????????????????#? ??????????##??#??????????? | | ??????????????????????????#???????????#?????#????? | | ???????????????????????????????##????????#???????? | | ???????????????????????????????????#?##?###??#???? | | ???????????????????????????#?????????#?#?????#?#?? | | ???????????????????????????#?#???????????????????? | +----------------------------------------------------+ Best States ------------- Heat Dissipation 28 Energy Generation 10 Energy Capacity 250 Matter Stores 300 Matter Capacity 300 Sight Range 18 Terrain Scan Range 16 Terrain Scan Density 85 Evasion (%) 50 Targeting Accuracy 6 Recoil Reduction 2 Item Schematics ----------------- None Robot Schematics ------------------ None Fabricated ------------ Nothing Alien Tech Used ----------------- None Achievements -------------- None Challenges ------------ None Game ------ Seed TachyonWarpSuperbattery Manual? 0 Play Time 00:26:46 Cumulative 717.2 hours Start 2022.07.03 @ 00:41:52 End 2022.07.03 @ 01:12:02 Sessions 1 Manual Loads 0 Difficulty Rogue Special Mode None Game No. 380 Rogue 253 Adventurer 125 Explorer 2 Win Type - Total 84 Types 72/5/4/1/1/0/0/0/1 Lore% 82 Gallery% 89 Achievement% 76 Wizard Run 0 Options --------- ASCII 0 Keyboard 1 Movement Numpad Keybinds 0 Fullscreen 1 Font 36/TerminusFine Map View 76x50 Tactical HUD 1 Map Filters NONE Filters NONE Steam 1 RUN: cfe0753b-8d62-4989-ba4f-3c96a0d87d61